Cogmind - Beta 11.1 @@@ ROGUE MODE // 2022.05.30 @ 17:19:02 Player: ktur Result: Destroyed by S-27 Virus with Autogun Performance ------------- Evolutions (5) 2500 Regions Visited (25) 5000 Robots Destroyed (361) 1805 Value Destroyed (12986) 12986 Prototype IDs (51) 1020 Alien Tech Used (1) 200 Bonus (1957) 1957 TOTAL SCORE: 25468 Bonus ------- High Alert Combat Kills 2418 Follower Combat Kills 2374 Network Hubs Disabled 600 Met Data Miner 300 Met Zhirov 300 Built Enhanced Grunts 300 A7 Reached Mainframe 300 Met R17 at Cetus 500 Friendly Fire -5135 Cogmind --------- Core Integrity 0/1000 Matter 45/300 Energy 804/810 System Corruption 3% Temperature Cool (0) Movement Hovering (30) Location -4/Proximity Caves Parts ------- > --- POWER (2) -------- Reinforced Fission Core > --- PROPULSION (4) --- Cooled Gravmag System Cooled Gravmag System Cooled Gravmag System > --- UTILITY (9) ------ Experimental Heat Sink Advanced Energy Well Advanced Signal Interpreter Seismic Detector Experimental Targeting Computer Improved Cloaking Device Advanced Hacking Suite Improved System Shield Authchip [Processor] > --- WEAPON (2) ------- (None) > --- INVENTORY (5) ---- Experimental EM Disruption Field Transdimensional Reconstructor HERF Cannon EMDS Peak State ------------ > --- POWER ------------ Quantum Reactor Quantum Reactor > --- PROPULSION ------- Centrium Heavy Treads Centrium Heavy Treads > --- UTILITY ---------- Large Storage Unit Advanced Signal Interpreter Experimental Targeting Computer Experimental Phase Shifter Experimental Utility Shielding Centrium Medium Armor Plating Centrium Medium Armor Plating Experimental EM Disruption Field Improved Hacking Suite > --- WEAPON ----------- EMDS > --- INVENTORY -------- Advanced Energy Well High-capacity Matter Pod Experimental Sensor Array Improved Hacking Suite System Mapper Authchip [Processor] Authchip [Processor] Authchip [Processor] EMDS Advanced KE Penetrator Mini Smartbomb Launcher [Rating: 141] Favorites ----------- Power Light Nuclear Core Engine Ion Engine Power Core Light Nuclear Core Reactor Quantum Reactor Propulsion Light Treads Treads Light Treads Wheel Wheel Hover Unit Cooled Airjet Utility Hacking Suite Device Experimental Sensor Array Storage Large Storage Unit Processor Advanced Signal Interpreter Hackware Hacking Suite Protection Light Armor Plating Weapon Improved Assault Rifle Energy Gun Medium Laser Energy Cannon EMDS Ballistic Gun Improved Assault Rifle Ballistic Cannon Hardcell Cannon Launcher Mini Smartbomb Launcher Impact Weapon Flail Slashing Weapon Greatsword Build | -11 -10 -10 -9 -9 -9 -8 -8 -8 -7 -7 -7 -7 -7 -7 -6 -6 -6 -6 -6 -6 -5 -5 -5 -5 -4 ------- Run | Scr Mat Min Mat Min Exi Min Mat Sto Fac Was Fac Low Low Dat Pro Fac Ext Cet Arc Hub Fac Upp Upp Zhi Pro Slots Evolved 10 | . . . 2 . . . 2 . 2 . . . . . . 2 . . . . 2 . . . . Power 1 | . . . . . . . . . . . . . . . . . . . . . 1 . . . . Propulsion 2 | . . . 1 . . . 1 . . . . . . . . . . . . . . . . . . Utility 7 | . . . 1 . . . 1 . 2 . . . . . . 2 . . . . 1 . . . . Weapon . | . . . . . . . . . . . . . . . . . . . . . . . . . . Parts Attached 370 | 6 19 1 33 1 . 4 28 22 25 . 17 . . 4 3 23 16 14 13 22 88 7 4 7 13 Power 30 | 1 2 . 2 . . . 4 2 1 . . . . . 1 . . 1 . 2 11 1 . 2 . Engine 8 | 1 2 . 2 . . . 2 1 . . . . . . . . . . . . . . . . . Core 11 | . . . . . . . 2 1 1 . . . . . 1 . . . . . 6 . . . . Reactor 11 | . . . . . . . . . . . . . . . . . . 1 . 2 5 1 . 2 . Propulsion 65 | 2 4 . 5 1 . 2 9 9 8 . 6 . . . . 5 . 2 . 1 8 . . . 3 Treads 42 | 2 3 . 5 1 . 2 9 9 . . . . . . . . . 2 . 1 8 . . . . Leg . | . . . . . . . . . . . . . . . . . . . . . . . . . . Wheel 1 | . 1 . . . . . . . . . . . . . . . . . . . . . . . . Hover 22 | . . . . . . . . . 8 . 6 . . . . 5 . . . . . . . . 3 Flight . | . . . . . . . . . . . . . . . . . . . . . . . . . . Utility 174 | 1 4 . 11 . . . 11 5 11 . 6 . . 4 1 14 10 5 13 15 46 4 2 3 8 Device 87 | . 1 . 6 . . . 3 . 4 . 3 . . . 1 4 6 1 3 10 34 3 1 2 5 Storage 8 | 1 2 . 1 . . . . . 1 . . . . . . . . . 1 . . 1 . . 1 Processor 8 | . . . . . . . 1 . 1 . . . . 2 . 1 1 . . 2 . . . . . Hackware 17 | . . . . . . . . . 2 . . . . . . 5 . . 5 . 3 . . . 2 Protection 54 | . 1 . 4 . . . 7 5 3 . 3 . . 2 . 4 3 4 4 3 9 . 1 1 . Artifact . | . . . . . . . . . . . . . . . . . . . . . . . . . . Weapon 101 | 2 9 1 15 . . 2 4 6 5 . 5 . . . 1 4 6 6 . 4 23 2 2 2 2 Energy Gun 7 | 1 2 . 2 . . . . . . . . . . . . . . . . . 2 . . . . Energy Cannon 8 | . . . . . . . . 1 . . . . . . . . . . . 1 6 . . . . Ballistic Gun 41 | 1 4 . 9 . . 1 3 3 . . . . . . . . . 4 . 3 11 1 . 1 . Ballistic Cannon 8 | . . . . . . . . . . . . . . . . . 3 1 . . 1 . 1 1 1 Launcher 21 | . 3 1 4 . . 1 1 1 1 . 2 . . . 1 . . . . . 3 1 1 . 1 Special Weapon . | . . . . . . . . . . . . . . . . . . . . . . . . . . Impact Weapon 2 | . . . . . . . . 1 1 . . . . . . . . . . . . . . . . Slashing Weapon 14 | . . . . . . . . . 3 . 3 . . . . 4 3 1 . . . . . . . Piercing Weapon . | . . . . . . . . . . . . . . . . . . . . . . . . . . Special Melee Weapon . | . . . . . . . . . . . . . . . . . . . . . . . . . . Unidentified Prototypes 14 | . . . . . . . . 1 1 . . . . . . . . 3 1 5 . . . 3 . Corrupted Parts 1 | . . . . . . . . . . . . . . . . . . 1 . . . . . . . System Corruption 1 | . . . . . . . . . . . . . . . . . . 1 . . . . . . . Parts Lost 48 | . 3 . 1 . . 2 16 4 . . . . . 1 . 1 . 1 . . 14 1 . . 4 Power 8 | . 2 . . . . . 2 . . . . . . 1 . . . . . . 3 . . . . Propulsion 14 | . 1 . . . . . 8 2 . . . . . . . . . . . . 2 . . . 1 Utility 19 | . . . 1 . . 2 4 2 . . . . . . . 1 . 1 . . 6 . . . 2 Weapon 7 | . . . . . . . 2 . . . . . . . . . . . . . 3 1 . . 1 Highest Loss Streak 8 | . 1 . 1 . . 2 4 2 . . . . . 1 . 1 . 1 . . 8 1 . . 4 To Critical Strikes . | . . . . . . . . . . . . . . . . . . . . . . . . . . Average Slot Usage (%) 89 | . 96 100 97 100 100 97 86 97 92 92 91 92 92 92 85 91 90 82 83 85 79 76 81 70 74 Engine 4 | . 12 14 10 11 11 11 3 2 . . . . . . . . . . . . . . . . . Core 3 | . . . . . . . 5 6 7 7 7 7 7 7 7 6 6 3 . . 5 6 5 5 5 Reactor 1 | . . . . . . . . . . . . . . . . . . 2 6 6 5 4 5 5 . Treads 16 | . 27 28 31 33 33 33 29 34 . . . . . . . . . 8 13 13 9 5 5 5 . Hover 6 | . . . . . . . . . 29 30 29 30 30 30 30 25 26 8 . . . . . . 15 Device 8 | . 3 . 8 . . . 1 . 7 7 6 7 7 4 7 5 6 5 3 5 12 27 28 28 19 Storage 8 | . 14 14 11 11 11 11 9 9 7 7 7 7 7 7 7 6 6 6 6 6 5 5 5 5 3 Processor 6 | . . . . . . . 8 9 7 7 7 7 7 10 7 6 6 7 6 9 11 11 11 11 11 Hackware 7 | . . . . . . . . . 14 15 15 15 15 15 15 26 24 16 17 14 10 5 5 5 15 Protection 9 | . 8 14 12 22 22 19 11 17 7 7 7 7 7 7 7 6 4 8 16 15 6 . . . . Energy Gun 2 | . 17 11 4 . . . . . . . . . . . . . . . . . . . . . . Ballistic Gun 9 | . 10 14 17 22 22 21 17 17 . . . . . . . . . 10 13 12 5 4 5 . . Slashing Weapon 1 | . . . . . . . . . 6 7 6 7 7 7 1 5 3 . . . . . . . . Naked Turns . | . . . . . . . . . . . . . . . . . . . . . . . . . . Heaviest Build 106 | 13 92 93 104 102 102 102 106 106 34 33 34 33 33 34 35 34 43 78 85 69 99 97 92 92 33 Greatest Support 160 | 40 40 40 69 69 69 69 89 80 33 33 41 45 33 45 45 37 33 160 160 160 160 80 80 80 48 Greatest Overweight (x) 5 | . 2 2 2 1 1 1 5 1 1 . 1 . . . . 1 1 1 . . 1 1 1 1 . Average Overweight (x) . | . 1 2 1 1 1 1 1 1 . . . . . . . . . . . . . . 1 . . Largest Inventory Capacity 25 | 8 25 25 25 25 25 25 25 25 25 15 15 15 15 15 15 15 15 15 15 15 15 20 20 20 20 Average Capacity 19 | 7 22 25 25 25 25 25 25 25 15 15 15 15 15 15 15 15 15 15 15 15 15 19 20 20 6 Most Carried 25 | 6 25 25 25 25 25 25 25 25 24 15 15 15 15 15 15 15 15 15 15 15 15 16 14 20 20 Average Carried 18 | 3 20 24 24 25 25 25 24 24 15 15 14 15 15 14 14 14 14 14 14 14 13 14 13 16 6 Final Capacity 25 | 8 25 25 25 25 25 25 25 25 15 15 15 15 15 15 15 15 15 15 15 15 15 20 20 20 5 Final Carried 25 | 6 25 25 25 25 25 25 24 25 15 15 15 15 15 14 15 15 15 15 15 15 15 14 14 20 5 Class Distribution -------------------- 38% | Mutant 33% | Scavenger-Mutant 26% | Hacker-Mutant Dominant Class ---------------- Mutant | -10/Materials Mutant | -10/Mines Mutant | -9/Materials Mutant | -9/Mines Mutant | -9/Exiles Mutant | -8/Mines Mutant | -8/Materials Scavenger-Mutant | -8/Storage Hacker-Mutant | -7/Factory Hacker-Mutant | -7/Waste Hacker-Mutant | -7/Factory Hacker-Mutant | -7/Lower Caves Hacker-Mutant | -7/Lower Caves Hacker-Mutant | -7/Data Miner Hacker-Mutant | -6/Proximity Caves Hacker-Mutant | -6/Factory Hacker-Mutant | -6/Extension Scavenger-Mutant | -6/Cetus Scavenger-Mutant | -6/Archives Scavenger-Mutant | -6/Hub_04(d) Scavenger-Mutant | -5/Factory Scavenger-Mutant | -5/Upper Caves Scavenger-Mutant | -5/Upper Caves Scavenger-Mutant | -5/Zhirov Hacker-Mutant | -4/Proximity Caves Resources | -11 -10 -10 -9 -9 -9 -8 -8 -8 -7 -7 -7 -7 -7 -7 -6 -6 -6 -6 -6 -6 -5 -5 -5 -5 -4 ----------- Run | Scr Mat Min Mat Min Exi Min Mat Sto Fac Was Fac Low Low Dat Pro Fac Ext Cet Arc Hub Fac Upp Upp Zhi Pro Matter Collected 10743 | 238 529 . 969 76 . 154 885 704 249 . 507 16 9 . 123 262 427 406 353 1320 3090 205 88 . 133 Remotely 457 | . . . . . . . . . . . . . . . . . . . . . 141 149 88 . 79 Salvage Created 15307 | . 930 . 1996 107 . 292 1720 1648 181 . 969 . . 25 20 370 231 381 296 2297 3640 103 42 . 59 Parts 771 | . 52 . 129 13 . 16 88 90 10 . 39 . . 2 2 32 8 19 23 98 139 3 3 . 5 Haulers Intercepted 11 | . 2 . 6 . . . 3 . . . . . . . . . . . . . . . . . . Recyclers Shooed 11 | . . . 3 . . 1 . . 1 . 2 . . . . . . . . . 4 . . . . Parts Field Recycled . | . . . . . . . . . . . . . . . . . . . . . . . . . . Retrieved Matter . | . . . . . . . . . . . . . . . . . . . . . . . . . . Parts Self-Destructed 12 | . . . . . . . . . . . . 4 . . 2 . . . . . . 1 2 . 3 Prevented 13 | . . . . . . . . . . . . 7 . . . . . . . . . 5 1 . . Kills | -11 -10 -10 -9 -9 -9 -8 -8 -8 -7 -7 -7 -7 -7 -7 -6 -6 -6 -6 -6 -6 -5 -5 -5 -5 -4 ------- Run | Scr Mat Min Mat Min Exi Min Mat Sto Fac Was Fac Low Low Dat Pro Fac Ext Cet Arc Hub Fac Upp Upp Zhi Pro Combat Hostiles Destroyed 260 | . 25 . 35 8 . 7 32 35 1 . 8 . . . 3 3 2 . . 26 63 3 4 . 5 Melee 7 | . . . . . . . . . 1 . 2 . . . . 3 . . . . 1 . . . . Guns 174 | . 17 . 31 8 . 5 27 28 . . . . . . . . . . . 26 32 . . . . Cannons 18 | . . . . . . . . . . . . . . . . . 2 . . . 16 . . . . AOE 59 | . 6 . 4 . . 2 5 7 . . 6 . . . 3 . . . . . 14 3 4 . 5 Classes Destroyed 19 | . 6 . 3 . . 1 1 3 2 . . . . . . . . . . 1 2 . . . . Worker 21 | . 2 . 5 . . . . 1 1 . 3 . . . . 1 . . . 5 3 . . . . Builder 6 | . . . . . . . 1 . . . 1 . . . . 2 . . . 1 1 . . . . Tunneler 6 | . . . . . . . . . 1 . 1 . . . . . . . . 2 2 . . . . Hauler 11 | . 2 . 6 . . . 3 . . . . . . . . . . . . . . . . . . Recycler 22 | . . . 3 . . 1 1 2 1 . 6 . . . . 1 1 . . 3 3 . . . . Mechanic 1 | . . . . . . . . 1 . . . . . . . . . . . . . . . . . Operator 16 | . 2 . 2 . . . . 1 . . . . . . . 1 2 . 8 . . . . . . Watcher 13 | . 1 . 1 . . . 1 . . . 3 . . . . 2 . . . 2 3 . . . . Swarmer 46 | . 6 . 6 8 . 3 3 4 . . . . . . 3 . . . . . 4 . 4 . 5 Cutter 3 | . . . . . . . . . . . . . . . . . . . . . 3 . . . . Saboteur 3 | . . . . . . . . . . . . . . . . . . . . 1 2 . . . . Grunt 130 | . 19 . 17 . . 3 22 20 . . 6 . . . . . 1 . . 12 27 3 . . . Brawler 8 | . . . 2 . . . 1 1 . . . . . . . . . . . . 4 . . . . Duelist 3 | . . . . . . . . 1 . . . . . . . . . . . . 2 . . . . Protector 2 | . . . . . . . . 1 . . . . . . . . . . . 1 . . . . . Sentry 32 | . . . 10 . . . 5 8 . . 2 . . . . . 1 . . 3 3 . . . . Hunter 7 | . . . . . . 1 1 . . . . . . . . . . . . 1 4 . . . . Programmer 18 | . . . . . . . . . 1 . . . . . . 3 . . . 2 12 . . . . Heavy 2 | . . . . . . . . . . . . . . . . . . . . . 2 . . . . Enhanced Grunt 2 | . . . . . . . . . . . . . . . . . . 2 . . . . . . . Lightning 6 | . . . . . . . . . . . . . . . . . . . . 6 . . . . . Savage 2 | . . . . . . . . . . . . . . . . . . 2 . . . . . . . Best Kill Streak 13 | . 13 . 5 4 . 3 8 10 1 . 9 . . 1 3 2 1 . 2 7 8 3 4 . 5 Combat Bots Only 9 | . 9 . 3 4 . 3 5 8 1 . 7 . . . 3 1 1 . . 4 8 3 4 . 5 Max Kills in Single Turn 8 | . 2 . 2 2 . 2 2 4 1 . 8 . . 1 1 1 1 2 1 7 4 1 4 . 4 Gunslinging 1 | . . . . 1 . . . . . . . . . . . . . . . . . . . . . Exploded 6 | . 2 . 2 . . 2 2 2 . . 6 . . . 1 . . . . . 4 1 4 . 4 Melee 1 | . . . . . . . . . 1 . 1 . . . . 1 . . . . 1 . . . . Uniques/NPCs Destroyed 2 | . . . . . . . . . . . . . . 1 . . . 1 . . . . . . . Data Miner (-7/Data Miner) A7 (-6/Cetus) Combat | -11 -10 -10 -9 -9 -9 -8 -8 -8 -7 -7 -7 -7 -7 -7 -6 -6 -6 -6 -6 -6 -5 -5 -5 -5 -4 -------- Run | Scr Mat Min Mat Min Exi Min Mat Sto Fac Was Fac Low Low Dat Pro Fac Ext Cet Arc Hub Fac Upp Upp Zhi Pro Damage Taken 19141 | . 1145 . 981 198 . 404 2270 1696 14 32 279 39 . 186 47 426 18 41 90 2718 7037 110 66 . 1344 Core 2224 | . 182 . 219 21 . 51 308 209 . . 45 13 . . . 34 . . . 131 562 . 18 . 431 Absorbed by Shields 886 | . . . 273 . . . . . . . . . . . . . . 39 . . 574 . . . . Reduced by Siege Mode 923 | . . . . . . . . . . . . . . . . . . . . 172 740 11 . . . Redirected to Shielding 583 | . . . . . . . . . . . 59 . . 30 . 84 . . . 102 295 13 . . . Regen/Repaired (Parts) 4968 | . 136 . 244 . . . 229 59 19 . 283 . . . . 383 . . . . 3615 . . . . Core Remaining (%) 55 | 100 . 27 . . . 27 . 6 . . . . . . 91 . . . . 80 . . . . . Volleys Fired 911 | . 79 . 130 11 . 20 112 84 1 . 2 . . . 3 . 27 28 27 130 235 3 1 . 18 Largest 2 | . 2 . 2 2 . 2 2 2 1 . 1 . . . 1 . 1 2 2 2 2 1 1 . 2 Hottest 120 | . 100 . 70 46 . 46 46 46 39 . 39 . . . 39 . 48 70 70 70 120 80 80 . 86 Shots Fired 1663 | . 150 . 255 22 . 39 211 163 1 . 2 . . . 3 . 28 57 54 257 391 3 2 . 25 Gun 1480 | . 143 . 250 22 . 38 205 158 . . . . . . . . . 56 54 257 290 . . . 7 Cannon 135 | . . . . . . . . . . . . . . . . . 28 1 . . 89 . 1 . 16 Launcher 48 | . 7 . 5 . . 1 6 5 1 . 2 . . . 3 . . . . . 12 3 1 . 2 Special . | . . . . . . . . . . . . . . . . . . . . . . . . . . Kinetic 1435 | . 49 . 196 22 . 38 205 158 . . . . . . . . 28 57 54 257 347 . 1 . 23 Thermal 156 | . 94 . 54 . . . . . . . . . . . . . . . . . 8 . . . . Explosive 48 | . 7 . 5 . . 1 6 5 1 . 2 . . . 3 . . . . . 12 3 1 . 2 Electromagnetic 24 | . . . . . . . . . . . . . . . . . . . . . 24 . . . . Robot Hit Streak 38 | . 16 . 24 3 . 6 35 23 . . 4 . . . . . 10 9 8 35 38 8 9 . 19 Robot Miss Streak 5 | . 3 . 3 2 . 5 2 1 . . . . . . . . 2 4 5 5 2 . . . 1 Penetration Max 1 | . . . . . . . . . . . . . . . . . . 1 1 1 1 . . . . Secondary Targets 28 | . 3 . 2 3 . 1 3 1 . . . . . . . . . . . 8 7 . . . . Max Gunslinging Chain 1 | . 1 . 1 1 . 1 1 1 . . . . . . . . . . . 1 1 . . . . Shots Hit Robots 1326 | . 108 . 179 12 . 20 179 136 6 . 22 . . 1 . 18 18 44 30 197 332 3 1 . 20 Core Hits 642 | . 50 . 76 8 . 11 84 78 2 . 37 . . 1 3 7 8 16 15 90 141 6 4 . 5 Critical Kills 33 | . . . . . . . . . . . . . . . . . . 3 4 15 11 . . . . Critical Parts Destroyed 46 | . . . . . . . 3 . . . . . . . . . . 5 2 23 13 . . . . Critical Strikes 110 | . 12 . 3 . . . 3 . . . . . . . . 1 3 10 6 38 34 . . . . Burn 15 | . 12 . 3 . . . . . . . . . . . . . . . . . . . . . . Destroy 83 | . . . . . . . 3 . . . . . . . . . . 10 6 38 26 . . . . Blast 6 | . . . . . . . . . . . . . . . . . 3 . . . 3 . . . . Corrupt 5 | . . . . . . . . . . . . . . . . . . . . . 5 . . . . Sever 1 | . . . . . . . . . . . . . . . . 1 . . . . . . . . . Melee Attacks 147 | . . . . . . . . 1 29 . 42 . . 1 . 63 4 7 . . . . . . . Impact 1 | . . . . . . . . 1 . . . . . . . . . . . . . . . . . Slashing 146 | . . . . . . . . . 29 . 42 . . 1 . 63 4 7 . . . . . . . Piercing . | . . . . . . . . . . . . . . . . . . . . . . . . . . Sneak Attacks 22 | . . . . . . . . . 3 . 10 . . 1 . 6 2 . . . . . . . . Combat Hostiles . | . . . . . . . . . . . . . . . . . . . . . . . . . . Follow-up Attacks . | . . . . . . . . . . . . . . . . . . . . . . . . . . Damage Inflicted 39067 | . 1694 . 2922 192 . 379 3277 3090 539 . 2438 . . 109 359 1315 762 1594 901 6511 11248 370 327 . 1040 Guns 24278 | . 1269 . 2597 192 . 271 2743 2037 . . . . . . . . . 1569 901 5570 6969 . . . 160 Cannons 3388 | . . . . . . . . . . . . . . . . . 469 25 . . 2512 . . . 382 Explosions 7256 | . 404 . 250 . . 108 504 1040 . . 724 . . . 359 . . . . 930 1742 370 327 . 498 Melee 3970 | . . . . . . . . . 539 . 1714 . . 109 . 1315 293 . . . . . . . . Ramming 175 | . 21 . 75 . . . 30 13 . . . . . . . . . . . 11 25 . . . . Kinetic 25517 | . 362 . 2146 192 . 271 2743 2037 . . . . . . . . 469 1594 901 5570 8690 . . . 542 Thermal 1978 | . 907 . 451 . . . . . . . . . . . . . . . . . 620 . . . . Explosive 5492 | . 404 . 250 . . 108 504 1040 . . 280 . . . 359 . . . . . 1352 370 327 . 498 Electromagnetic 1935 | . . . . . . . . . . . 444 . . . . . . . . 930 561 . . . . Impact . | . . . . . . . . . . . . . . . . . . . . . . . . . . Slashing 3970 | . . . . . . . . . 539 . 1714 . . 109 . 1315 293 . . . . . . . . Piercing . | . . . . . . . . . . . . . . . . . . . . . . . . . . Highest Corruption 13 | . . . . . . . . . 2 10 12 12 12 12 12 8 8 9 9 13 3 3 3 3 3 Average Corruption 5 | . . . . . . . . . 2 7 11 12 12 12 12 6 8 8 7 9 2 3 3 3 3 Corruption Purged 9 | . . . . . . . . . . . . . . . . . . . 9 . . . . . . Corruption Blocked . | . . . . . . . . . . . . . . . . . . . . . . . . . . Effects 269 | . . . . . . . . . 6 3 43 4 7 2 14 14 32 19 10 35 46 15 10 4 5 Message Errors 74 | . . . . . . . . . 1 1 17 . 4 1 1 3 9 5 2 7 13 5 3 1 1 Matter Fused 67 | . . . . . . . . . 1 . 11 1 . 1 5 5 12 4 3 7 9 2 2 1 3 Heat Flow Errors 28 | . . . . . . . . . . . 4 . 1 . 1 1 4 1 1 4 6 1 2 1 1 Energy Discharges 35 | . . . . . . . . . 1 1 6 . 1 . 1 2 3 2 1 8 4 3 1 1 . Parts Rejected 4 | . . . . . . . . . . . . . . . . 2 . . . 1 1 . . . . Data Loss (minor) 33 | . . . . . . . . . 3 . 3 1 1 . 3 1 2 3 1 3 8 3 1 . . Data Loss (major) 12 | . . . . . . . . . . . . 2 . . 3 . 1 2 1 . 3 . . . . Misfires 4 | . . . . . . . . . . . . . . . . . 1 1 . 1 . . 1 . . Alerts 4 | . . . . . . . . . . . 1 . . . . . . . 1 . 1 1 . . . Misdirections 2 | . . . . . . . . . . 1 1 . . . . . . . . . . . . . . Weapon Failures 6 | . . . . . . . . . . . . . . . . . . 1 . 4 1 . . . . Overload Shots . | . . . . . . . . . . . . . . . . . . . . . . . . . . Overflow Damage 1326 | . 24 . . . . . 2 8 306 . 405 . . . 64 338 35 . . 18 123 3 . . . Projectiles 94 | . . . . . . . . . . . . . . . . . . . . . 94 . . . . Explosions 148 | . 24 . . . . . 2 8 . . . . . . 64 . . . . 18 29 3 . . . Melee 1084 | . . . . . . . . . 306 . 405 . . . . 338 35 . . . . . . . . Knockbacks 10 | . . . . . . . . . . . . . . . . . 3 1 . . 6 . . . . Impact 1 | . . . . . . . . . . . . . . . . . . . . . 1 . . . . Kinetic 9 | . . . . . . . . . . . . . . . . . 3 1 . . 5 . . . . Secondary . | . . . . . . . . . . . . . . . . . . . . . . . . . . Self-Inflicted Damage 455 | . 69 . . . . 18 38 47 . . . . . . . . . . . 49 234 . . . . Shots 14 | . 3 . . . . 1 1 3 . . . . . . . . . . . 2 4 . . . . Rammed 25 | . 3 . 7 . . . 6 1 . . . . . . . . . . . 2 6 . . . . Targets Rammed 28 | . 4 . 9 . . . 6 1 . . . . . . . . . . . 2 6 . . . . Kicked . | . . . . . . . . . . . . . . . . . . . . . . . . . . Crushed 3 | . 1 . 2 . . . . . . . . . . . . . . . . . . . . . . Highest Temperature 472 | . 472 . 81 36 . 36 153 82 . . 178 . 79 . 208 239 226 262 133 272 435 248 266 162 288 Average Temperature 69 | . 122 . 20 17 . 12 62 31 . . 73 . 40 . 117 123 100 134 22 70 84 105 91 88 140 Received Heat Transfer 5312 | . 519 . 295 . . 27 1125 936 27 . 78 9 . . . . 9 . 9 576 1585 36 . . 81 Effects 10 | . 6 . . . . . . . . . . . . . . . . . . . 4 . . . . Shutdowns 3 | . 2 . . . . . . . . . . . . . . . . . . . 1 . . . . Energy Bleed 4 | . 2 . . . . . . . . . . . . . . . . . . . 2 . . . . Matter Decay 2 | . 1 . . . . . . . . . . . . . . . . . . . 1 . . . . Damage (minor) 1 | . 1 . . . . . . . . . . . . . . . . . . . . . . . . Siege Activations 22 | . . . . . . . . . . . . . . . . . . 1 . 7 13 1 . . . Total Turns 770 | . . . . . . . . . . . . . . . . . . 6 . 242 515 7 . . . Longest Duration 109 | . . . . . . . . . . . . . . . . . . 6 . 62 109 7 . . . Robots Corrupted . | . . . . . . . . . . . . . . . . . . . . . . . . . . Combat Hostiles . | . . . . . . . . . . . . . . . . . . . . . . . . . . Parts Fried 21 | . . . . . . . . . . . 3 . . . . . . . . 14 4 . . . . Impact Corruptions . | . . . . . . . . . . . . . . . . . . . . . . . . . . Robots Melted 2 | . 2 . . . . . . . . . . . . . . . . . . . . . . . . Combat Hostiles 2 | . 2 . . . . . . . . . . . . . . . . . . . . . . . . Parts Melted 18 | . 12 . 4 . . . . . . . . . . . . 1 . . . . 1 . . . . Heat Transferred 5565 | . 3589 . 1554 . . . . . . . . . . . . . . . . . 422 . . . . Parts Sabotaged 2 | . . . . . . . . . . . . . . . . . . . . . 2 . . . . Parts Stolen . | . . . . . . . . . . . . . . . . . . . . . . . . . . Parts Stripped . | . . . . . . . . . . . . . . . . . . . . . . . . . . Power Chain Reactions 1 | . . . . . . . . . . . . . . . . . . . . 1 . . . . . Missiles Intercepted . | . . . . . . . . . . . . . . . . . . . . . . . . . . Alert | -11 -10 -10 -9 -9 -9 -8 -8 -8 -7 -7 -7 -7 -7 -7 -6 -6 -6 -6 -6 -6 -5 -5 -5 -5 -4 ------- Run | Scr Mat Min Mat Min Exi Min Mat Sto Fac Was Fac Low Low Dat Pro Fac Ext Cet Arc Hub Fac Upp Upp Zhi Pro Peak Influence 1592 | . 436 94 366 297 . 176 531 693 355 82 610 . . . . 243 227 566 500 1303 1592 . . . . Initial 638 | . . 94 . 117 . . 68 102 303 82 57 . . . . 81 4 123 224 105 638 . . . . Average 344 | . 247 66 161 262 . 115 275 496 231 82 395 . . . . 117 88 370 454 573 699 . . . . Maximum Alert Level 4 | . 2 . 1 1 . . 2 2 1 . 2 . . . . 1 1 2 2 4 4 . . . . Low Security (%) 33 | 100 13 100 64 3 . 100 14 11 32 100 17 . . . . 96 89 7 . 10 3 . . . . Level 1 36 | . 78 . 35 96 . . 76 6 67 . 22 . . . . 3 10 57 12 27 17 . . . . Level 2 21 | . 7 . . . . . 8 82 . . 60 . . . . . . 34 87 31 43 . . . . Level 3 4 | . . . . . . . . . . . . . . . . . . . . 17 18 . . . . Level 4 4 | . . . . . . . . . . . . . . . . . . . . 12 16 . . . . Level 5 . | . . . . . . . . . . . . . . . . . . . . . . . . . . High Security . | . . . . . . . . . . . . . . . . . . . . . . . . . . Max Security . | . . . . . . . . . . . . . . . . . . . . . . . . . . Squads Dispatched 85 | . 6 . 7 . . . 5 8 11 . 7 . . . . 5 3 1 . 11 21 . . . . Investigation 45 | . 4 . 6 . . . 4 3 9 . 5 . . . . 4 1 1 . 4 4 . . . . Extermination 12 | . . . . . . . . . 2 . 2 . . . . 1 . . . 2 5 . . . . Reinforcement 18 | . 2 . 1 . . . 1 3 . . . . . . . . 2 . . 3 6 . . . . Assault 10 | . . . . . . . . 2 . . . . . . . . . . . 2 6 . . . . Garrison . | . . . . . . . . . . . . . . . . . . . . . . . . . . Intercept . | . . . . . . . . . . . . . . . . . . . . . . . . . . Searches Triggered 1 | . . . . . . . . . . . 1 . . . . . . . . . . . . . . Construction Impeded 7 | . . . . . . . 1 1 . . . . . . . . 1 . . 1 3 . . . . Haulers Reinforced . | . . . . . . . . . . . . . . . . . . . . . . . . . . Active Scanning Responses . | . . . . . . . . . . . . . . . . . . . . . . . . . . Cargo Convoy Interrupts 1 | . . . . . . . . . . . . . . . . . . . . . 1 . . . . Stealth | -11 -10 -10 -9 -9 -9 -8 -8 -8 -7 -7 -7 -7 -7 -7 -6 -6 -6 -6 -6 -6 -5 -5 -5 -5 -4 --------- Run | Scr Mat Min Mat Min Exi Min Mat Sto Fac Was Fac Low Low Dat Pro Fac Ext Cet Arc Hub Fac Upp Upp Zhi Pro Distress Signals 30 | . . . 8 . . . 3 2 2 . 1 . . . . 1 1 2 . 5 5 . . . . Communications Jammed 20 | . . . . . . . . . . . . . . . . . . . . . 20 . . . . Distress Signals 1 | . . . . . . . . . . . . . . . . . . . . . 1 . . . . Times Spotted 485 | . 36 . 64 8 . 8 45 42 12 6 28 12 . 4 7 13 15 10 17 55 90 3 4 . 6 Peak Tracking Total 11 | . 4 . 5 4 . 4 6 8 5 6 8 11 . 4 4 3 4 5 1 7 8 3 4 . 4 Tactical Retreats 29 | . . . . . . . 2 2 4 . 6 2 . . 2 1 . . . 1 8 . . . 1 Traps | -11 -10 -10 -9 -9 -9 -8 -8 -8 -7 -7 -7 -7 -7 -7 -6 -6 -6 -6 -6 -6 -5 -5 -5 -5 -4 ------- Run | Scr Mat Min Mat Min Exi Min Mat Sto Fac Was Fac Low Low Dat Pro Fac Ext Cet Arc Hub Fac Upp Upp Zhi Pro Traps Triggered 22 | . 1 . 2 . . . 2 1 4 . 3 . . . . . 3 . . 1 5 . . . . Indirectly 1 | . . . . . . . . . . . . . . . . . . . . 1 . . . . . Trap Hack Attempts . | . . . . . . . . . . . . . . . . . . . . . . . . . . Triggered . | . . . . . . . . . . . . . . . . . . . . . . . . . . Disarmed . | . . . . . . . . . . . . . . . . . . . . . . . . . . Reprogrammed . | . . . . . . . . . . . . . . . . . . . . . . . . . . Reused . | . . . . . . . . . . . . . . . . . . . . . . . . . . Traps Extracted . | . . . . . . . . . . . . . . . . . . . . . . . . . . Installed . | . . . . . . . . . . . . . . . . . . . . . . . . . . Triggered 6 | . . . . . . . . . . . 1 2 . . . . . . . . 1 1 1 . . Machines | -11 -10 -10 -9 -9 -9 -8 -8 -8 -7 -7 -7 -7 -7 -7 -6 -6 -6 -6 -6 -6 -5 -5 -5 -5 -4 ---------- Run | Scr Mat Min Mat Min Exi Min Mat Sto Fac Was Fac Low Low Dat Pro Fac Ext Cet Arc Hub Fac Upp Upp Zhi Pro Machines Disabled 51 | . 2 . 2 . . 1 3 . . . 8 . . . . . 2 . 5 22 6 . . . . Max in Single Turn 7 | . 1 . 1 . . 1 1 . . . 7 . . . . . 1 . 1 6 2 . . . . Garrison Access 4 | . . . . . . . . . . . 2 . . . . . . . . 1 1 . . . . Network Hub 3 | . . . . . . . . . . . . . . . . . . . . 3 . . . . . Machines Sabotaged 1 | . . . . . . . . . . . . . . . . . . . . 1 . . . . . Garrisons Compromised 1 | . . . . . . . . . . . . . . . . . . . . . 1 . . . . Overloaded Fab Kills . | . . . . . . . . . . . . . . . . . . . . . . . . . . Hacking | -11 -10 -10 -9 -9 -9 -8 -8 -8 -7 -7 -7 -7 -7 -7 -6 -6 -6 -6 -6 -6 -5 -5 -5 -5 -4 --------- Run | Scr Mat Min Mat Min Exi Min Mat Sto Fac Was Fac Low Low Dat Pro Fac Ext Cet Arc Hub Fac Upp Upp Zhi Pro Machines Accessed 120 | . 6 . 16 . 1 . 9 7 16 . 13 . 1 4 . 13 13 1 . 5 11 . . 4 . Terminals 61 | . 3 . 10 . . . 4 4 7 . 4 . . . . 7 13 1 . 4 4 . . . . Fabricators 8 | . . . . . . . . . 3 . 2 . . . . 2 . . . . 1 . . . . Repair Stations 14 | . 1 . 2 . . . 2 1 1 . 2 . . . . 3 . . . . 2 . . . . Recycling Units 15 | . 2 . 2 . . . 2 2 4 . 1 . . . . . . . . . 2 . . . . Scanalyzers 7 | . . . 2 . . . 1 . 1 . 1 . . . . 1 . . . . 1 . . . . Garrison Access 5 | . . . . . . . . . . . 3 . . . . . . . . 1 1 . . . . Total Hacks 403 | . 14 . 63 . 1 . 29 14 42 . 41 . 1 30 . 49 21 3 . 13 65 . . 17 . Successful 281 | . 8 . 43 . 1 . 16 7 28 . 23 . 1 30 . 42 12 . . 9 44 . . 17 . Failed 121 | . 6 . 19 . . . 13 7 14 . 18 . . . . 7 9 3 . 4 21 . . . . Catastrophic 14 | . . . 4 . . . 3 2 . . 3 . . . . . . . . . 2 . . . . Database Lockouts 1 | . . . 1 . . . . . . . . . . . . . . . . . . . . . . Manual 151 | . 7 . 35 . . . 13 6 28 . 11 . . . . 26 5 1 . 10 9 . . . . Terminals 187 | . 7 . 42 . . . 15 8 21 . 13 . . . . 28 21 3 . 12 17 . . . . Fabricators 28 | . . . . . . . . . 7 . 6 . . . . 11 . . . . 4 . . . . Repair Stations 66 | . 5 . 8 . . . 7 4 2 . 9 . . . . 8 . . . . 23 . . . . Recycling Units 30 | . 2 . 3 . . . 5 2 10 . 1 . . . . . . . . . 7 . . . . Scanalyzers 33 | . . . 10 . . . 2 . 2 . 4 . . . . 2 . . . . 13 . . . . Garrison Access 10 | . . . . . . . . . . . 8 . . . . . . . . 1 1 . . . . Terminal Hacks 128 | . 2 . 21 . 1 . 5 2 9 . 4 . 1 30 . 13 11 . . 4 8 . . 17 . Record 17 | . . . . . 1 . . . . . . . . 11 . . . . . . . . . 5 . Part Schematic 17 | . . . . . . . . . . . . . . 10 . 3 . . . . . . . 4 . Robot Schematic 6 | . . . . . . . . . . . . . . 6 . . . . . . . . . . . Robot Analysis 8 | . . . 2 . . . 1 . 1 . . . . . . . . . . . . . . 4 . Prototype ID Bank 16 | . 1 . 5 . . . 1 . . . . . . 3 . 1 1 . . . . . . 4 . Open Door 10 | . . . . . . . . 1 . . . . 1 . . . 8 . . . . . . . . Level Access Points 1 | . . . . . . . . . . . . . . . . . . . . 1 . . . . . Branch Access Points 2 | . . . . . . . . . . . 1 . . . . . . . . . 1 . . . . Emergency Access Points 1 | . . . . . . . . . . . . . . . . 1 . . . . . . . . . Machine Index 3 | . . . . . . . . . 1 . . . . . . . . . . 1 1 . . . . Terminal Index 4 | . . . . . . . . . 1 . . . . . . 1 . . . 1 1 . . . . Repair Station Index 3 | . . . 1 . . . . . . . . . . . . 1 . . . . 1 . . . . Recycling Unit Index 2 | . . . 1 . . . . . 1 . . . . . . . . . . . . . . . . Alert Level 14 | . . . 6 . . . 2 . 1 . . . . . . 2 . . . 1 2 . . . . Unreport Threat 10 | . . . 4 . . . 1 1 . . . . . . . . 2 . . . 2 . . . . Locate Traps 7 | . . . 1 . . . . . 3 . 2 . . . . 1 . . . . . . . . . Patrol Status 1 | . . . . . . . . . . . . . . . . 1 . . . . . . . . . Recall Extermination 2 | . . . . . . . . . 1 . 1 . . . . . . . . . . . . . . Hauler Manifests 3 | . 1 . 1 . . . . . . . . . . . . 1 . . . . . . . . . Zone Layout 1 | . . . . . . . . . . . . . . . . 1 . . . . . . . . . Fabricator Hacks 15 | . . . . . . . . . 3 . 2 . . . . 8 . . . . 2 . . . . Network Status 3 | . . . . . . . . . 1 . 1 . . . . 1 . . . . . . . . . Load Schematic 8 | . . . . . . . . . 2 . 1 . . . . 4 . . . . 1 . . . . Build 4 | . . . . . . . . . . . . . . . . 3 . . . . 1 . . . . Repair Station Hacks 58 | . 3 . 6 . . . 6 3 2 . 9 . . . . 8 . . . . 21 . . . . Scan Component 31 | . 2 . 3 . . . 3 2 1 . 5 . . . . 4 . . . . 11 . . . . Repair 27 | . 1 . 3 . . . 3 1 1 . 4 . . . . 4 . . . . 10 . . . . Recycling Unit Hacks 6 | . . . 1 . . . 1 . 2 . . . . . . . . . . . 2 . . . . Retrieve Components 6 | . . . 1 . . . 1 . 2 . . . . . . . . . . . 2 . . . . Scanalyzer 24 | . . . 8 . . . 1 . 1 . 4 . . . . 2 . . . . 8 . . . . Insert Component 11 | . . . 4 . . . 1 . 1 . 1 . . . . 2 . . . . 2 . . . . Analyze 13 | . . . 4 . . . . . . . 3 . . . . . . . . . 6 . . . . Garrison Access Hacks 4 | . . . . . . . . . . . 2 . . . . . . . . 1 1 . . . . Seal Access 4 | . . . . . . . . . . . 2 . . . . . . . . 1 1 . . . . Unauthorized Hacks 46 | . 3 . 7 . . . 3 2 11 . 2 . . . . 11 1 . . 4 2 . . . . Terminals 24 | . 1 . 5 . . . 1 . 3 . . . . . . 8 1 . . 4 1 . . . . Track 1 | . . . . . . . . . . . . . . . . 1 . . . . . . . . . Assimilate 5 | . . . 1 . . . . . 1 . . . . . . 2 1 . . . . . . . . Botnet 10 | . . . 3 . . . 1 . 2 . . . . . . 3 . . . . 1 . . . . Operators 4 | . 1 . 1 . . . . . . . . . . . . 2 . . . . . . . . . Sabotage 4 | . . . . . . . . . . . . . . . . . . . . 4 . . . . . Fabricators 10 | . . . . . . . . . 4 . 2 . . . . 3 . . . . 1 . . . . Prioritize 3 | . . . . . . . . . . . . . . . . 2 . . . . 1 . . . . Liberate 1 | . . . . . . . . . 1 . . . . . . . . . . . . . . . . Recompile 6 | . . . . . . . . . 3 . 2 . . . . 1 . . . . . . . . . Repair Stations . | . . . . . . . . . . . . . . . . . . . . . . . . . . Recycling Units 12 | . 2 . 2 . . . 2 2 4 . . . . . . . . . . . . . . . . Tunnel 12 | . 2 . 2 . . . 2 2 4 . . . . . . . . . . . . . . . . Scanalyzers . | . . . . . . . . . . . . . . . . . . . . . . . . . . Garrison Access . | . . . . . . . . . . . . . . . . . . . . . . . . . . Data Cores Recovered . | . . . . . . . . . . . . . . . . . . . . . . . . . . Used . | . . . . . . . . . . . . . . . . . . . . . . . . . . Hacking Detections 82 | . 4 . 13 . . . 8 5 13 . 11 . . . . 11 6 1 . 3 7 . . . . Full Trace Events 16 | . 2 . 2 . . . . 1 1 . 3 . . . . 3 1 1 . . 2 . . . . Feedback Events . | . . . . . . . . . . . . . . . . . . . . . . . . . . Feedback Blocked . | . . . . . . . . . . . . . . . . . . . . . . . . . . Robot Schematics Acquired 6 | . . . . . . . . . . . . . . 6 . . . . . . . . . . . Robots Built . | . . . . . . . . . . . . . . . . . . . . . . . . . . Authchips . | . . . . . . . . . . . . . . . . . . . . . . . . . . Time . | . . . . . . . . . . . . . . . . . . . . . . . . . . Total Robot Build Rating . | . . . . . . . . . . . . . . . . . . . . . . . . . . Part Schematics Acquired 22 | . . . 3 . . . . . . . 1 . . 10 . 3 . . . . 1 . . 4 . Parts Built 4 | . . . . . . . . . . . . . . . . 3 . . . . 1 . . . . Authchips 3 | . . . . . . . . . . . . . . . . 3 . . . . . . . . . Time 240 | . . . . . . . . . . . . . . . . 164 . . . . 76 . . . . Total Part Build Rating 22 | . . . . . . . . . . . . . . . . 17 . . . . 5 . . . . Parts Repaired 27 | . 1 . 3 . . . 3 1 1 . 4 . . . . 4 . . . . 10 . . . . Time 1807 | . 26 . 188 . . . 80 26 38 . 270 . . . . 141 . . . . 1038 . . . . Parts Recycled . | . . . . . . . . . . . . . . . . . . . . . . . . . . Recycled Matter . | . . . . . . . . . . . . . . . . . . . . . . . . . . Retrieved Matter . | . . . . . . . . . . . . . . . . . . . . . . . . . . Retrieved Components 21 | . . . 3 . . . 9 . 3 . . . . . . . . . . . 6 . . . . Parts Scanalyzed 8 | . . . 3 . . . 1 . 1 . 1 . . . . . . . . . 2 . . . . Part Schematics Acquired 5 | . . . 3 . . . . . . . 1 . . . . . . . . . 1 . . . . Parts Damaged 1 | . . . . . . . . . . . . . . . . . . . . . 1 . . . . Bothacking | -11 -10 -10 -9 -9 -9 -8 -8 -8 -7 -7 -7 -7 -7 -7 -6 -6 -6 -6 -6 -6 -5 -5 -5 -5 -4 ------------ Run | Scr Mat Min Mat Min Exi Min Mat Sto Fac Was Fac Low Low Dat Pro Fac Ext Cet Arc Hub Fac Upp Upp Zhi Pro Used RIF Installer . | . . . . . . . . . . . . . . . . . . . . . . . . . . Robots Hacked . | . . . . . . . . . . . . . . . . . . . . . . . . . . Non-combat . | . . . . . . . . . . . . . . . . . . . . . . . . . . Combat . | . . . . . . . . . . . . . . . . . . . . . . . . . . Robot Hacks Applied . | . . . . . . . . . . . . . . . . . . . . . . . . . . Relay Couplers Released 2 | . . . . . . . . . . . 2 . . . . . . . . . . . . . . Machine Destruction 2 | . . . . . . . . . . . 2 . . . . . . . . . . . . . . Fabnet Peak Effective % . | . . . . . . . . . . . . . . . . . . . . . . . . . . Robots Rewired 8 | . . . . . . . . . . . . . . . . . 8 . . . . . . . . Allies Hacked 1 | . . . . . . . . . . . . . . . . 1 . . . . . . . . . Hacks Repelled . | . . . . . . . . . . . . . . . . . . . . . . . . . . Allies | -11 -10 -10 -9 -9 -9 -8 -8 -8 -7 -7 -7 -7 -7 -7 -6 -6 -6 -6 -6 -6 -5 -5 -5 -5 -4 -------- Run | Scr Mat Min Mat Min Exi Min Mat Sto Fac Was Fac Low Low Dat Pro Fac Ext Cet Arc Hub Fac Upp Upp Zhi Pro Total Allies 33 | . . 1 1 . . . . 2 1 . . . . . . 2 21 5 . . . . . . . Largest Group 17 | . . 1 1 . . . . 2 1 . . . . . . 2 17 16 7 4 . . . . . Highest-Rated Group 845 | . . 31 31 . . . . 62 10 . . . . . . 20 625 845 412 254 . . . . . Highest-Rated Ally 159 | . . 31 31 . . . . 31 10 . . . . . . 10 159 159 96 96 . . . . . Total Orders 16 | . . . . . . . . . . . . . . . . . 13 2 1 . . . . . . ROAM 2 | . . . . . . . . . . . . . . . . . 2 . . . . . . . . FOLLOW 2 | . . . . . . . . . . . . . . . . . 2 . . . . . . . . RETURN 12 | . . . . . . . . . . . . . . . . . 9 2 1 . . . . . . Ally Attacks 334 | . . . 6 . . . . 13 . . . . . . . . 121 118 37 39 . . . . . Total Damage 8544 | . . . 104 . . . . 208 . . . . . . . . 2511 3059 820 1842 . . . . . Kills 61 | . . . 2 . . . . 1 . . . . . . . . 23 20 7 8 . . . . . Allies Corrupted 1 | . . . . . . . . . . . . . . . . . 1 . . . . . . . . Allies Melted . | . . . . . . . . . . . . . . . . . . . . . . . . . . Intel | -11 -10 -10 -9 -9 -9 -8 -8 -8 -7 -7 -7 -7 -7 -7 -6 -6 -6 -6 -6 -6 -5 -5 -5 -5 -4 ------- Run | Scr Mat Min Mat Min Exi Min Mat Sto Fac Was Fac Low Low Dat Pro Fac Ext Cet Arc Hub Fac Upp Upp Zhi Pro Robot Analysis Total 8 | . . . 2 . . . 1 . 1 . . . . . . . . . . . . . . 4 . Derelict Logs Recovered 4 | . . 1 . . . . . . . . . 1 1 . . . . . . . . 1 . . . Drone Launches 18 | . . . . . . . . . . . . . . . . . 12 4 2 . . . . . . Drone Recoveries 17 | . . . . . . . . . . . . . . . . . 12 4 1 . . . . . . Exploration | -11 -10 -10 -9 -9 -9 -8 -8 -8 -7 -7 -7 -7 -7 -7 -6 -6 -6 -6 -6 -6 -5 -5 -5 -5 -4 ------------- Run | Scr Mat Min Mat Min Exi Min Mat Sto Fac Was Fac Low Low Dat Pro Fac Ext Cet Arc Hub Fac Upp Upp Zhi Pro Turns Passed 25141 | 65 2368 567 3930 362 305 315 2168 1085 1246 59 1028 103 167 46 331 1220 1142 545 403 1447 4240 704 642 266 387 Spaces Moved 15000 | 37 736 177 1286 137 128 104 640 298 2145 121 1525 230 382 102 423 1742 932 252 178 568 1450 269 256 151 731 Core 7 | 7 . . . . . . . . . . . . . . . . . . . . . . . . . Treads 6532 | 30 661 177 1286 137 128 104 640 298 . . . . . . . . . 199 178 568 1450 269 256 151 . Legs . | . . . . . . . . . . . . . . . . . . . . . . . . . . Wheels 75 | . 75 . . . . . . . . . . . . . . . . . . . . . . . . Hover 8386 | . . . . . . . . . 2145 121 1525 230 382 102 423 1742 932 53 . . . . . . 731 Flight . | . . . . . . . . . . . . . . . . . . . . . . . . . . Fastest Speed 26 | 50 80 320 240 240 240 240 240 240 38 38 30 26 38 26 26 34 38 38 160 160 160 160 240 160 30 Average Speed 118 | 139 275 320 248 240 240 240 254 240 38 38 38 36 38 34 37 38 48 141 160 160 163 237 240 163 41 Slowest Speed 560 | 160 320 320 320 240 240 240 560 240 98 38 98 38 38 38 38 102 98 160 160 160 240 240 240 240 42 Overloaded Moves 102 | . . . . . . . . . . . 14 26 . 27 8 1 . . . . . . . . 26 Propulsion Burnouts . | . . . . . . . . . . . . . . . . . . . . . . . . . . Robots Hopped . | . . . . . . . . . . . . . . . . . . . . . . . . . . Cave-ins Triggered . | . . . . . . . . . . . . . . . . . . . . . . . . . . Exploration Rate (%) 52 | 3 87 41 98 29 49 28 42 48 32 69 37 49 58 76 60 23 83 68 84 51 30 53 46 62 51 Regions Visited 25 Branch Regions 17 Pre-discovered Areas 18 | . 2 1 2 . 1 . 2 2 4 . . . . 1 . . . . . . . . . 3 . Known Exits Taken 14 | . . . . . . . . . . . 1 1 1 1 1 1 1 1 1 1 1 1 1 1 . Unknown Exits Taken 9 | 1 1 1 1 1 1 1 1 1 . . . . . . . . . . . . . . . . . Scrap Searched 11 | . . . . 1 . 1 . . . . . 1 2 . 2 . . . . . . 1 1 . 2 Spaces Dug 170 | . 10 . 24 . . . . 1 35 . 31 . . . 25 37 1 1 . 1 4 . . . . Terrain Destroyed 855 | . 34 . 34 . . 6 31 36 35 . 38 . . . 34 37 6 25 15 396 88 17 5 . 18 Melee 79 | . . . . . . . . 1 19 . 21 . . . . 37 . 1 . . . . . . . Projectile 156 | . . . . . . . . . . . . . . . . . 6 24 15 59 49 . . . 3 AOE 620 | . 34 . 34 . . 6 31 35 16 . 17 . . . 34 . . . . 337 39 17 5 . 15 Terrain Rammed . | . . . . . . . . . . . . . . . . . . . . . . . . . . Walls Destroyed . | . . . . . . . . . . . . . . . . . . . . . . . . . . Machines Disabled . | . . . . . . . . . . . . . . . . . . . . . . . . . . Actions | -11 -10 -10 -9 -9 -9 -8 -8 -8 -7 -7 -7 -7 -7 -7 -6 -6 -6 -6 -6 -6 -5 -5 -5 -5 -4 --------- Run | Scr Mat Min Mat Min Exi Min Mat Sto Fac Was Fac Low Low Dat Pro Fac Ext Cet Arc Hub Fac Upp Upp Zhi Pro Total 20449 | 48 927 179 1768 149 127 129 956 504 2525 133 1883 248 403 108 590 2166 1597 375 242 846 2964 331 284 171 796 Wait 3457 | . 45 . 245 1 . 2 142 78 270 11 280 19 22 . 160 324 493 48 14 100 1106 50 21 . 26 Move 14976 | 36 735 176 1285 136 127 103 639 297 2145 120 1524 229 381 101 422 1741 931 251 177 567 1449 268 255 150 731 Hop . | . . . . . . . . . . . . . . . . . . . . . . . . . . Pick Up 182 | 6 30 1 25 . . . 17 5 14 1 6 . . 1 . 11 12 7 3 6 28 . . 7 2 Fast Attach 144 | 6 5 . 11 . . . 13 11 5 . 7 . . . . 5 4 9 4 9 39 1 3 6 6 Attach 91 | . 1 . 1 . . . 10 1 12 . 4 . . 1 2 8 12 3 4 3 19 4 1 . 5 Detach 38 | . . . . . . . 1 1 1 . 3 . . . 2 . 6 1 1 2 16 3 1 . . Swap 136 | . 13 1 21 1 . 4 5 10 8 . 6 . . 3 1 10 . 2 5 10 30 2 . 2 2 Drop 234 | . 15 1 41 . . . 11 15 27 1 9 . . 1 . 4 16 19 7 17 36 . 2 6 6 Fire 911 | . 79 . 130 11 . 20 112 84 1 . 2 . . . 3 . 27 28 27 130 235 3 1 . 18 Melee 147 | . . . . . . . . 1 29 . 42 . . 1 . 63 4 7 . . . . . . . Ram . | . . . . . . . . . . . . . . . . . . . . . . . . . . Kick . | . . . . . . . . . . . . . . . . . . . . . . . . . . Crush 28 | . 4 . 9 . . . 6 1 . . . . . . . . . . . 2 6 . . . . Escape Stasis 63 | . . . . . . . . . 13 . . . . . . . 50 . . . . . . . . Rewire 42 | . . . . . . . . . . . . . . . . . 42 . . . . . . . . Trap . | . . . . . . . . . . . . . . . . . . . . . . . . . . Miscellaneous . | . . . . . . . . . . . . . . . . . . . . . . . . . . Route ------- -11/Scrapyard -10/Materials (discovered 3 exits: *Mat x2 / [*Min]) -10/Mines -9/Materials (discovered 4 exits: *Mat x3 / [*Min]) -9/Mines -9/Exiles -8/Mines -8/Materials (discovered 2 exits: *Fac / *Sto) -8/Storage -7/Factory (discovered 2 exits: *Fac / *Low) -7/Waste -7/Factory (discovered 4 exits: *Fac x2 / *Low x2) -7/Lower Caves -7/Lower Caves -7/Data Miner -6/Proximity Caves -6/Factory (discovered 2 exits: *Low / *Ext) -6/Extension (discovered 2 exits: *Fac / *Cet) -6/Cetus (discovered 2 exits: *Fac / *Arc) -6/Archives (discovered 3 exits: *Fac / *Hub x2) -6/Hub_04(d) (discovered 4 exits: *Fac x4) -5/Factory (discovered 2 exits: *Upp x2) -5/Upper Caves -5/Upper Caves -5/Zhirov -4/Proximity Caves History --------- Turn | Location | Event 4 | -11/Scrapyard | Discovered new exit (range 14) 66 | -11/Scrapyard | Entered Materials 278 | -10/Materials | Destroyed 9 combat bots 305 | -10/Materials | Discovered new exit (range 6) 358 | -10/Materials | Build established: Mutant 730 | -10/Materials | Discovered new exit (range 16) 902 | -10/Materials | Core integrity fell below 50% 1951 | -10/Materials | Discovered new exit (range 13) 2025 | -10/Materials | Repaired Lgt. Treads 2434 | -10/Materials | Entered Mines 2754 | -10/Mines | Found a damaged Exp. Sensor Array with a note attached 2768 | -10/Mines | Found Prototype Device 2833 | -10/Mines | Learned location of Mines (-9) 2965 | -10/Mines | Discovered new exit (range 6) 2969 | -10/Mines | Received a Mining Laser from a helpful Derelict 3001 | -10/Mines | Entered Materials 3001 | -9/Materials | Accompanied by 1 ally 3001 | -9/Materials | Evolved 2 slots: Propulsion x1, Utility x1 3296 | -9/Materials | Identified Exp. Sensor Array 3536 | -9/Materials | Repaired Lgt. Treads 3563 | -9/Materials | Repaired Lgt. Treads 4256 | -9/Materials | Discovered new exit (range 16) 4938 | -9/Materials | Repaired Broken Exp. Sensor Array 5037 | -9/Materials | Discovered new exit (range 8) 5612 | -9/Materials | Discovered new exit (range 15) 6249 | -9/Materials | Core integrity fell below 50% 6510 | -9/Materials | Discovered new exit (range 15) 6608 | -9/Materials | Central database locked down 6931 | -9/Materials | Entered Mines 7207 | -9/Mines | Deemed a non-threat by the Exiles lab entrance 7207 | -9/Mines | Discovered new exit (range 5) 7293 | -9/Mines | Entered Exiles 7351 | -9/Exiles | Met 8R-AWN 7387 | -9/Exiles | Met EX-HEX 7483 | -9/Exiles | Met EX-DEC 7500 | -9/Exiles | Learned location of Zion (-6) 7574 | -9/Exiles | Discovered new exit (range 10) 7598 | -9/Exiles | Entered Mines 7841 | -8/Mines | Discovered new exit (range 11) 7913 | -8/Mines | Entered Materials 7913 | -8/Materials | Evolved 2 slots: Propulsion x1, Utility x1 8221 | -8/Materials | Repaired Imp. Treads 8340 | -8/Materials | Discovered new exit (range 11) 8609 | -8/Materials | Build established: Scavenger-Mutant 8652 | -8/Materials | Discovered new exit (range 11) 8730 | -8/Materials | Lost 4 parts (2n2u) 8968 | -8/Materials | Build established: Mutant 8997 | -8/Materials | Lost 3 parts (2n1u) 9443 | -8/Materials | Core integrity fell below 50% 9695 | -8/Materials | Repaired Lgt. Armor Plating 9883 | -8/Materials | Repaired Lgt. Nuclear Core 10081 | -8/Materials | Entered Storage 10113 | -8/Storage | Met a pair of Derelict thieves 10238 | -8/Storage | Destroyed 8 combat bots 10693 | -8/Storage | Build established: Scavenger-Mutant 10697 | -8/Storage | Core integrity fell below 20% 10914 | -8/Storage | Repaired Lgt. Armor Plating 11157 | -8/Storage | Discovered new exit (range 5) 11166 | -8/Storage | Entered Factory 11166 | -7/Factory | Evolved 2 slots: Utility x2 11413 | -7/Factory | Discovered new exit (range 10) 11417 | -7/Factory | Identified exit to Lower Caves 11425 | -7/Factory | Discovered new exit (range 6) 11429 | -7/Factory | Identified exit to Factory 11462 | -7/Factory | Build established: Hacker-Mutant 11828 | -7/Factory | Repaired Lgt. Nuclear Core 12412 | -7/Factory | Sucked down chute 12412 | -7/Factory | Entered Waste 12418 | -7/Waste | Spotted C-40 Crusher 12424 | -7/Waste | Spotted C-40 Crusher 12425 | -7/Waste | Spotted C-40 Crusher 12427 | -7/Waste | EMP discharged 12427 | -7/Waste | System corruption reached 10% 12447 | -7/Waste | Spotted C-40 Crusher 12448 | -7/Waste | Spotted C-40 Crusher 12457 | -7/Waste | Spotted C-40 Crusher 12462 | -7/Waste | Discovered new exit (range 16) 12470 | -7/Waste | Identified exit to Factory 12471 | -7/Waste | Entered Factory 12687 | -7/Factory | Destroyed 7 combat bots 12767 | -7/Factory | Repaired Corrupted Hyp. Mass Driver 12841 | -7/Factory | Repaired Greatsword 12865 | -7/Factory | Discovered exit to Factory (range 11) 13156 | -7/Factory | Discovered exit to Factory (range 16) 13271 | -7/Factory | Search patrols dispatched 13299 | -7/Factory | Repaired Cld. Airjet 13397 | -7/Factory | Repaired Cld. Airjet 13499 | -7/Factory | Entered Lower Caves 13503 | -7/Lower Caves | Attracted the attention of an 0b10 checkpoint 13569 | -7/Lower Caves | Learned Factory emergency access door positions 13600 | -7/Lower Caves | Encountered a Warlord checkpoint 13601 | -7/Lower Caves | Discovered new exit (range 5) 13602 | -7/Lower Caves | Identified exit to Lower Caves 13602 | -7/Lower Caves | Entered another Lower Caves area 13657 | -7/Lower Caves | Learned Factory stockpile data 13767 | -7/Lower Caves | Discovered new exit (range 6) 13769 | -7/Lower Caves | Identified exit to Data Miner 13769 | -7/Lower Caves | Entered Data Miner 13769 | -7/Data Miner | Discovered new exit (range 6) 13777 | -7/Data Miner | Met Data Miner 13784 | -7/Data Miner | Learned location of Section 7 (-2) 13786 | -7/Data Miner | Acquired the access code to Warlord's prototype stash 13793 | -7/Data Miner | Received God Mode back door access code from Data Miner 13801 | -7/Data Miner | Destroyed Data Miner 13805 | -7/Data Miner | Found Prototype Hackware 13815 | -7/Data Miner | Identified exit to Proximity Caves 13815 | -7/Data Miner | Entered Proximity Caves 14144 | -6/Proximity Caves | Discovered exit to Factory (range 7) 14146 | -6/Proximity Caves | Entered Factory 14146 | -6/Factory | Evolved 2 slots: Utility x2 14295 | -6/Factory | Repaired Greatsword 14312 | -6/Factory | Discovered new exit (range 6) 14314 | -6/Factory | Identified exit to Lower Caves 14400 | -6/Factory | Fabricated Mni. Smartbomb Launcher (x1) 14462 | -6/Factory | Identified System Mapper 14705 | -6/Factory | Repaired Greatsword 14742 | -6/Factory | Repaired Imp. Airjet 14815 | -6/Factory | Discovered new exit (range 16) 15038 | -6/Factory | Fabricated Combat Drone Bay? 15149 | -6/Factory | Fabricated Exp. Utility Shielding (x1) 15330 | -6/Factory | Repaired Cld. Airjet 15361 | -6/Factory | Identified exit to Extension 15366 | -6/Factory | Entered Extension 15603 | -6/Extension | Rescued a captive Derelict 15656 | -6/Extension | Rescued a captive Derelict 15657 | -6/Extension | Rescued a captive Derelict 15729 | -6/Extension | Rescued a captive Derelict 15730 | -6/Extension | Rescued a captive Derelict 15749 | -6/Extension | Rescued a captive Derelict 15750 | -6/Extension | Rescued a captive Derelict 16073 | -6/Extension | Allies destroyed B-75 Beast 16097 | -6/Extension | Allies destroyed B-75 Beast 16222 | -6/Extension | Rescued a captive Derelict 16223 | -6/Extension | Rescued a captive Derelict 16310 | -6/Extension | Rescued A7 16351 | -6/Extension | Rescued a captive Derelict 16356 | -6/Extension | Rescued a captive Derelict 16357 | -6/Extension | Rescued a captive Derelict 16439 | -6/Extension | Discovered new exit (range 10) 16439 | -6/Extension | Discovered new exit (range 6) 16450 | -6/Extension | Identified exit to Cetus 16485 | -6/Extension | Identified exit to Factory 16508 | -6/Extension | Entered Cetus 16508 | -6/Cetus | Accompanied by 16 allies (A7) 16513 | -6/Cetus | Acquired a Cetus Manufacturing Module code from A7 16541 | -6/Cetus | Spotted Cetus Guard 16541 | -6/Cetus | Spotted Cetus Guard 16548 | -6/Cetus | Allies destroyed Cetus Guard 16548 | -6/Cetus | Allies destroyed Cetus Guard 16549 | -6/Cetus | Allies destroyed Cetus Guard 16552 | -6/Cetus | Spotted Cetus Guard 16556 | -6/Cetus | Allies destroyed Cetus Guard 16628 | -6/Cetus | Started Cetus Manufacturing Module 16653 | -6/Cetus | Manufactured an Enhanced Grunt 16678 | -6/Cetus | Manufactured an Enhanced Grunt 16687 | -6/Cetus | Escorted A7 to Cetus Mainframe 16703 | -6/Cetus | Manufactured an Enhanced Grunt 16710 | -6/Cetus | Discovered new exit (range 15) 16728 | -6/Cetus | Manufactured an Enhanced Grunt 16745 | -6/Cetus | Discovered exit to Factory (range 22) 16745 | -6/Cetus | Spotted Cetus Guard 16745 | -6/Cetus | Spotted Cetus Guard 16752 | -6/Cetus | Allies destroyed Cetus Guard 16753 | -6/Cetus | Manufactured an Enhanced Grunt 16754 | -6/Cetus | Spotted Cetus Guard 16754 | -6/Cetus | Spotted Cetus Guard 16756 | -6/Cetus | Allies destroyed Cetus Guard 16758 | -6/Cetus | Allies destroyed Cetus Guard 16777 | -6/Cetus | Met Revision 17 17016 | -6/Cetus | Destroyed A7 17019 | -6/Cetus | Extracted ID and sensor layout for unrecognized location from A7's data core 17033 | -6/Cetus | Identified exit to Archives 17053 | -6/Cetus | Entered Archives 17053 | -6/Archives | Accompanied by 7 allies 17078 | -6/Archives | Build established: Scavenger-Mutant 17090 | -6/Archives | Discovered new exit (range 23) 17120 | -6/Archives | Discovered new exit (range 22) 17134 | -6/Archives | Discovered exit to Factory (range 16) 17443 | -6/Archives | Identified exit to Hub_04(d) 17456 | -6/Archives | Entered Hub_04(d) 17456 | -6/Hub_04(d) | Accompanied by 4 allies 17859 | -6/Hub_04(d) | Spotted B-75 Beast 17862 | -6/Hub_04(d) | Allies destroyed B-75 Beast 17948 | -6/Hub_04(d) | Network Hub disabled 17950 | -6/Hub_04(d) | Spotted Lightning 17979 | -6/Hub_04(d) | Spotted Lightning 17983 | -6/Hub_04(d) | Spotted Lightning 17984 | -6/Hub_04(d) | Spotted Lightning 17995 | -6/Hub_04(d) | Destroyed Lightning 18010 | -6/Hub_04(d) | Destroyed Lightning 18013 | -6/Hub_04(d) | Destroyed Lightning 18051 | -6/Hub_04(d) | Found Prototype Device 18051 | -6/Hub_04(d) | Identified Exp. EM Disruption Field 18069 | -6/Hub_04(d) | Found Prototype Device 18069 | -6/Hub_04(d) | Identified Exp. Phase Shifter 18086 | -6/Hub_04(d) | Found Prototype Energy Cannon 18100 | -6/Hub_04(d) | Identified EMDS 18121 | -6/Hub_04(d) | Found Prototype Processor 18121 | -6/Hub_04(d) | Identified Exp. Targeting Computer 18145 | -6/Hub_04(d) | Found Exp. Targeting Computer 18243 | -6/Hub_04(d) | Network Hub disabled 18435 | -6/Hub_04(d) | Spotted Lightning 18451 | -6/Hub_04(d) | Spotted Lightning 18462 | -6/Hub_04(d) | Destroyed Lightning 18483 | -6/Hub_04(d) | System corruption reached 10% 18501 | -6/Hub_04(d) | Destroyed Lightning 18522 | -6/Hub_04(d) | Destroyed Lightning 18535 | -6/Hub_04(d) | Found EMDS 18670 | -6/Hub_04(d) | Network Hub disabled 18856 | -6/Hub_04(d) | First assault squad dispatched 18903 | -6/Hub_04(d) | Entered Factory 18903 | -5/Factory | Evolved 2 slots: Power x1, Utility x1 19266 | -5/Factory | Repaired Broken Centrium Heavy Treads 19356 | -5/Factory | Repaired Exp. Utility Shielding? 19475 | -5/Factory | Repaired Centrium Heavy Treads? 19563 | -5/Factory | Repaired Quantum Reactor? 20614 | -5/Factory | Cargo convoy interrupted 20619 | -5/Factory | Lost 8 parts (2p1n4u1w) 20771 | -5/Factory | Repaired Broken Centrium Heavy Treads 20843 | -5/Factory | Build established: Hacker-Mutant 20896 | -5/Factory | Repaired Broken Adv. KE Penetrator 21006 | -5/Factory | Repaired Centrium Medium Armor Plating 21115 | -5/Factory | Repaired Centrium Medium Armor Plating 21172 | -5/Factory | Repaired KE Penetrator 21195 | -5/Factory | Build established: Scavenger-Mutant 21282 | -5/Factory | Repaired Exp. Sensor Array 21903 | -5/Factory | First assault squad dispatched 22139 | -5/Factory | Destroyed 8 combat bots 22682 | -5/Factory | Identified exit to Upper Caves 22782 | -5/Factory | Fabricated Exp. Utility Shielding (x1) 22824 | -5/Factory | Build established: Hacker-Mutant 23113 | -5/Factory | Core integrity fell below 50% 23143 | -5/Factory | Entered Upper Caves 23153 | -5/Upper Caves | Lost 3 parts (1n1u1w) 23177 | -5/Upper Caves | Learned location of 1 exit from Factory 23426 | -5/Upper Caves | Build established: Scavenger-Mutant 23672 | -5/Upper Caves | Encountered a Warlord checkpoint 23825 | -5/Upper Caves | Discovered new exit (range 9) 23842 | -5/Upper Caves | Identified exit to Upper Caves 23847 | -5/Upper Caves | Entered another Upper Caves area 24473 | -5/Upper Caves | Discovered new exit (range 8) 24487 | -5/Upper Caves | Identified exit to Zhirov 24489 | -5/Upper Caves | Entered Zhirov 24489 | -5/Zhirov | Discovered new exit (range 3) 24494 | -5/Zhirov | Identified exit to Proximity Caves 24522 | -5/Zhirov | Met Zhirov 24582 | -5/Zhirov | Zhirov requested help retrieving the SGEMP Prototype 24608 | -5/Zhirov | Found Alien Artifact 24608 | -5/Zhirov | Identified Integrated Reactor 24608 | -5/Zhirov | Installed Integrated Reactor, increased core energy generation (+10) 24690 | -5/Zhirov | Found Alien Artifact 24755 | -5/Zhirov | Entered Proximity Caves 24755 | -4/Proximity Caves | Spotted B-86 Titan 24794 | -4/Proximity Caves | Core integrity fell below 20% 24832 | -4/Proximity Caves | Lost 4 parts (1n2u1w) 25097 | -4/Proximity Caves | Build established: Hacker-Mutant 25142 | -4/Proximity Caves | Destroyed by S-27 Virus with Autogun Last Messages --------------- 24931_ Dropped Exp. Heat Sink. 24932_ Acquired Unknown Device. 24932_ Identified Power Amplifier. 24933_ Dropped Power Amplifier. 24934_ Acquired Unknown Device. 24934_ Identified Drone Bay. 24936_ Dropped Drone Bay. 24937_ Acquired Exp. Heat Sink. 24940_ Dropped Imp. Thermal Shield. 24940_ Acquired Seismic Detector. 24942_ Dropped Imp. Weapon Cycler. 24944_ Acquired HERF Cannon. 24998_ OTSEWYA7YQK,BJ4XB|L1G 25044_ System corrupted: Matter fused (-5). 25066_ System corrupted: Matter fused (-7). 25129_ System corrupted: Heat flow error (+189). 25138_ Searching scrap... 25138_ Found Mak. Terrain Scanner. 25138_ Found Remote Force Field. 25138_ Found 27 Matter. Map ----- +----------------------------------------------------+ | ????### ###??????????????????????? | | ?#### ##????????????????????????? | | ?# ##???##???????????????????? | | ## ## #### #???????????????????? | | #### ## #???????????????????? | | ### ###??### #???????????????????? | | #?# ### ##??###?## #???????????????????? | | #?# ##### #??# #??### ##???????????????????? | | ??# #####?# #?##########????????????????????? | | ??### #????# #?# #??????????????????????????? | | ????# #???# #?# #?????????????????????????? | | ????# #??? #?? #??###???????????????????? | | ????# #?## #?? ### ???????????????????? | | ???## ### ### ???????????????????? | | ##?# #???????????????????? | | # ## ####### ##?##???????????????? | | #????# ? ## #???????????????? | | #????# ?? #??# #???????????????? | | #????? ?? ????# #???????????????? | | # #???? #?? #???# #????????????????? | | # #????# $#?? #???# ###????????????????? | | # ## #????? #?? #???# #??????????????????? | | # #### ####### ### ##### #??????????????????? | | # ## ## #??????????????????? | | # ## ## ## s #??????????????????? | | ## ####### ##@s####??????????????????? | | ### ##????# ###s!#?????? #?????????????? | | ##### #???## #?#s #?### #??????????????? | | ##?## #???# #?# # #??????????????? | | #??# ##???# ### ##?????????????? | | #?# #???## #?????????????? | | ##?# #???# #????????????? | | ##??# ##??## ## ### #????????????? | | #???########### #### #???? ???????????? | | ????????## ## ## ### #####?????? ??????????? | | ##?###### #####?# ##??????????????????? | | ### ##??## #??????????????????? | | #### #??????????????????? | | ## ##??????????????????? | | ## ### ####???????????????????? | | ### ### ##??????????????????????? | | #?# ### #???????????????????????? | | #####?## #???????????????????????? | | #??????## #???????????????????????? | | ## ##???????# ##???????????????????????? | | ?#######????????## ####????????????????????????? | | ?????????????????#####???????????????????????????? | | ?????????????????????????????????????????????????? | | ?????????????????????????????????????????????????? | | ?????????????????????????????????????????????????? | +----------------------------------------------------+ Best States ------------- Heat Dissipation 66 Coolant Potential 80 Energy Generation 45 Energy Capacity 810 Matter Stores 300 Matter Capacity 300 Sight Range 16 Robot Scan Range 20 Terrain Scan Density 10 ECM Strength 1 Jamming Range 14 Cloak Strength 3 Additional Mass Support 6 Armor Coverage 900 Resistance: TH 25 Resistance: EM 75 Propulsion Shielding 66 Utility Shielding 90 Weapon Cycling 20 Phase Shifting 20 Evasion (%) 60 Targeting Accuracy 12 Melee Accuracy 8 Core Analysis 9 Recoil Reduction 4 Offensive Hacking 44 Defensive Hacking 12 Authchip Count 5 Item Schematics ----------------- Exp. Sensor Array | -9/Materials | Scanalyzed Huge Storage Unit | -9/Materials | Scanalyzed Hacking Suite | -9/Materials | Scanalyzed Hyp. Mass Driver | -7/Factory | Scanalyzed Combat Drone Bay | -7/Data Miner | Free Lgt. Regenerative Plating | -7/Data Miner | Free Cld. Aerolev Unit | -7/Data Miner | Free Gravity Neutralizer | -7/Data Miner | Free Imp. Heavy Laser | -7/Data Miner | Free Antigrav System | -7/Data Miner | Free Adv. Trap Extractor | -7/Data Miner | Free Mass Driver | -7/Data Miner | Free Point Defense System | -7/Data Miner | Free Remote Force Field | -7/Data Miner | Free Mni. Smartbomb Launcher | -6/Factory | Hacked Exp. Cooling System | -6/Factory | Hacked Exp. Utility Shielding | -6/Factory | Hacked Adv. KE Penetrator | -5/Factory | Scanalyzed Assault Drone Bay | -5/Zhirov | Free Exp. Heat Sink | -5/Zhirov | Free Exp. Optical Array | -5/Zhirov | Free Imp. Arc Thrower | -5/Zhirov | Free Robot Schematics ------------------ B-48 Gladiator | -7/Data Miner | Free L-41 Fighter | -7/Data Miner | Free S-27 Virus | -7/Data Miner | Free M-28 Smith | -7/Data Miner | Free P-60 Hacker | -7/Data Miner | Free B-60 Warrior | -7/Data Miner | Free Fabricated ------------ Mni. Smartbomb Launcher | x1 | -6/Factory | Authchip Combat Drone Bay | x1 | -6/Factory | Authchip Exp. Utility Shielding | x1 | -6/Factory | Authchip Exp. Utility Shielding | x1 | -5/Factory Alien Tech Used ----------------- Integrated Reactor Achievements -------------- None Challenges ------------ None Game ------ Seed DirtyTerrabombMembrane Manual? 0 Play Time 03:12:30 Cumulative 448.2 hours Start 2022.05.30 @ 11:16:59 End 2022.05.30 @ 17:19:02 Sessions 11 Manual Loads 0 Difficulty Rogue Special Mode None Game No. 423 Rogue 423 Adventurer 0 Explorer 0 Win Type - Total 21 Types 13/2/3/2/0/0/0/1/0 Lore% 93 Gallery% 91 Achievement% 77 Wizard Run 0 Options --------- ASCII 0 Keyboard 0 Movement Arrows Keybinds 0 Fullscreen 1 Font 18/Smallcaps Map View 76x50 Tactical HUD 1 Map Filters NONE Filters NONE Steam 1 RUN: e2e9fbc6-5ca8-421f-b414-1606cad0b331